fUST/lending_fUST_20250203
["ID","MTS","AMOUNT","RATE_DAILY","PERIOD"]
[351356468,1738536632931,-500.0,0.00016438,2]
[351356469,1738536632940,-500.0,0.00016438,2]
[351356470,1738536632951,-500.0,0.00016438,2]
[351356471,1738536632960,-500.0,0.00016438,2]
[351356472,1738536632969,-500.0,0.00016438,2]
[351356473,1738536632979,-500.0,0.00016438,2]
[351356474,1738536632990,-533.49,0.00016438,2]
[351356475,1738536633000,-500.0,0.00016438,2]
[351356476,1738536633009,-500.0,0.00016438,2]
[351356477,1738536633019,-500.0,0.00016438,2]
[351356478,1738536633029,-500.0,0.00016438,2]
[351356480,1738536633038,-500.0,0.00016438,2]
[351356481,1738536633049,-517.52887381,0.00016438,2]
[351356483,1738536633059,-500.0,0.00016438,2]
[351356485,1738536633069,-500.0,0.00016438,2]
[351356487,1738536633080,-500.0,0.00016438,2]
[351356489,1738536633090,-500.0,0.00016438,2]
[351356490,1738536633101,-500.0,0.00016438,2]
[351356491,1738536633111,-499.50866725,0.00016438,2]
[351356492,1738536633121,-500.0,0.00016438,2]
[351356493,1738536633130,-410.65041535,0.00016438,2]
[351356494,1738536633140,-500.0,0.00016438,2]
[351356495,1738536633150,-500.0,0.00016438,2]
[351356496,1738536633159,-505.08567262,0.00016438,2]
[351356497,1738536633170,-500.0,0.00016438,2]
[351356498,1738536633181,-500.0,0.00016438,2]
[351356500,1738536633191,-500.0,0.00016438,2]
[351356501,1738536633201,-500.0,0.00016438,2]
[351356503,1738536633211,-500.0,0.00016438,2]
[351356505,1738536633221,-500.0,0.00016438,2]
[351356507,1738536633231,-500.0,0.00016438,2]
[351356508,1738536633240,-542.72487996,0.00016438,2]
[351356509,1738536633251,-500.0,0.00016438,2]
[351356510,1738536633261,-500.0,0.00016438,2]
[351356511,1738536633271,-505.39196174,0.00016438,2]
[351356512,1738536633281,-600.44539603,0.00016438,2]
[351356513,1738536633291,-500.0,0.00016438,2]
[351356514,1738536633301,-500.0,0.00016438,2]
[351356515,1738536633310,-500.0,0.00016438,2]
[351356516,1738536633319,-500.0,0.00016438,2]
[351356517,1738536633329,-507.44792533,0.00016438,2]
[351356518,1738536633339,-511.54762105,0.00016438,2]
[351356519,1738536633348,-500.0,0.00016438,2]
[351356520,1738536633358,-500.0,0.00016438,2]
[351356521,1738536633367,-1145.47,0.00016438,2]
[351356522,1738536633377,-500.0,0.00016438,2]
[351356523,1738536633387,-500.0,0.00016438,2]
[351356524,1738536633396,-500.0,0.00016438,2]
[351356525,1738536633406,-500.0,0.00016438,2]
[351356526,1738536633416,-500.0,0.00016438,2]
[351356527,1738536633428,-500.0,0.00016438,2]
[351356528,1738536633437,-500.0,0.00016438,2]
[351356529,1738536633447,-500.0,0.00016438,2]
[351356530,1738536633457,-266.45700312,0.00016438,2]
[351356531,1738536633467,-500.0,0.00016438,2]
[351356532,1738536633477,-500.0,0.00016438,2]
[351356533,1738536633486,-500.0,0.00016438,2]
[351356534,1738536633496,-500.0,0.00016438,2]
[351356535,1738536633506,-500.0,0.00016438,2]
[351356536,1738536633516,-500.0,0.00016438,2]
[351356537,1738536633526,-504.20449591,0.00016438,2]
[351356538,1738536633535,-500.0,0.00016438,2]
[351356539,1738536633545,-1335.28,0.00016438,2]
[351356540,1738536633555,-500.0,0.00016438,2]
[351356541,1738536633565,-648.48394815,0.00016438,2]
[351356542,1738536633574,-278.12323383,0.00016438,2]
[351356543,1738536633583,-1945.69,0.00016438,2]
[351356544,1738536633593,-468.69778965,0.00016438,2]
[351356545,1738536633605,-500.0,0.00016438,2]
[351356546,1738536633615,-500.0,0.00016438,2]
[351356547,1738536633625,-500.0,0.00016438,2]
[351356548,1738536633634,-799.04,0.00016438,2]
[351356549,1738536633644,-500.0,0.00016438,2]
[351356550,1738536633653,-500.0,0.00016438,2]
[351356551,1738536633663,-500.0,0.00016438,2]
[351356552,1738536633672,-500.0,0.00016438,2]
[351356553,1738536633685,-300.0,0.00016438,2]
[351356554,1738536633695,-508.34,0.00016438,2]
[351356555,1738536633704,-500.0,0.00016438,2]
[351356556,1738536633714,-513.34333386,0.00016438,2]
[351356557,1738536633724,-500.0,0.00016438,2]
[351356558,1738536633733,-1211.27,0.00016438,2]
[351356559,1738536633743,-7344.67,0.00016438,2]
[351356560,1738536633752,-500.0,0.00016438,2]
[351356561,1738536633762,-489.28306794,0.00016438,2]
[351356562,1738536633773,-500.0,0.00016438,2]
[351356563,1738536633782,-6297.26,0.00016438,2]
[351356564,1738536633793,-650.73,0.00016438,2]
[351356565,1738536633802,-500.0,0.00016438,2]
[351356566,1738536633812,-1236.74059972,0.00016438,2]
[351356568,1738536637703,-265.00459996,0.00016438,2]
[351356569,1738536637717,-213.91480032,0.00016438,2]
[351356571,1738536637728,-500.0,0.00016438,2]
[351356573,1738536637738,-248.08519968,0.00016438,2]
[351356577,1738536637786,-251.91480032,0.00016438,2]
[351356579,1738536637797,-500.0,0.00016438,2]
[351356581,1738536637809,-500.0,0.00016438,2]
[351356583,1738536637819,-803.62,0.00016438,2]
[351356585,1738536637829,-444.46519468,0.00016438,2]
[351356587,1738536637842,-113.72480532,0.00016438,2]
[351356588,1738536637852,-500.0,0.00016438,2]
[351356589,1738536637862,-1571.48,0.00016438,2]
[351356590,1738536637872,-500.0,0.00016438,2]
[351356591,1738536637881,-114.79519469,0.00016438,2]
[351356592,1738536637893,-385.20480531,0.00016438,2]
[351356593,1738536637903,-500.0,0.00016438,2]
[351356594,1738536637913,-500.0,0.00016438,2]
[351356595,1738536637923,-500.0,0.00016438,2]
[351356596,1738536637936,-503.75403089,0.00016438,2]
[351356597,1738536637946,-312.34512386,0.00016438,2]
[351356598,1738536637966,-197.27309471,0.00016438,2]
[351356599,1738536637979,-262.39162937,0.00016438,2]
[351356600,1738536637989,-500.0,0.00016438,2]
[351356601,1738536638000,-500.0,0.00016438,2]
[351356602,1738536638010,-500.0,0.00016438,2]
[351356603,1738536638021,-500.0,0.00016438,2]
[351356604,1738536638031,-535.26957842,0.00016438,2]
[351356605,1738536638042,-208.32218055,0.00016438,2]
[351356606,1738536638053,-500.0,0.00016438,2]
[351356607,1738536638063,-500.0,0.00016438,2]
[351356608,1738536638073,-507.7389605,0.00016438,2]
[351356609,1738536638083,-500.0,0.00016438,2]
[351356610,1738536638093,-500.0,0.00016438,2]
[351356611,1738536638103,-646.54229962,0.00016438,2]
[351356612,1738536638258,-191.68770038,0.00016438,2]
[351356613,1738536638268,-610.09,0.00016438,2]
[351356614,1738536638278,-191.72580092,0.00016438,2]
[351356615,1738536638290,-308.27419908,0.00016438,2]
[351356616,1738536638300,-283.77095402,0.00016438,2]
[351356618,1738536638310,-147.49762432,0.00016438,2]
[351356619,1738536638323,-352.50237568,0.00016438,2]
[351356620,1738536638332,-505.81296922,0.00016438,2]
[351356622,1738536638453,-508.21544375,0.00016438,2]
[351356623,1738536638463,-2504.66921135,0.00016438,2]
[351356624,1738536638475,-1563.61078865,0.00016438,2]
[351356625,1738536638485,-363.54921135,0.00016438,2]
[351356626,1738536638497,-978.44078865,0.00016438,2]
[351356627,1738536638506,-587.38658344,0.00016438,2]
[351356629,1738536638515,-403.97391244,0.00016438,2]
[351356631,1738536638526,-234.18317465,0.00016438,2]
[351356633,1738536638535,-508.39671475,0.00016438,2]
[351356635,1738536638546,-500.0,0.00016438,2]
[351356637,1738536638556,-503.9949409,0.00016438,2]
[351356639,1738536638566,-500.0,0.00016438,2]
[351356640,1738536638576,-507.98375317,0.00016438,2]
[351356641,1738536638586,-500.0,0.00016438,2]
[351356642,1738536638596,-501.4252174,0.00016438,2]
[351356643,1738536638612,-597.79024833,0.00016438,2]
[351356644,1738536638622,-500.0,0.00016438,2]
[351356645,1738536638632,-507.11857668,0.00016438,2]
[351356646,1738536638642,-500.0,0.00016438,2]
[351356648,1738536638651,-500.0,0.00016438,2]
[351356650,1738536638662,-501.10273914,0.00016438,2]
[351356652,1738536638672,-500.0,0.00016438,7]
[351356653,1738536638684,-3625.05,0.00016438,2]
[351356655,1738536638694,-1352.18,0.00016438,2]
[351356657,1738536638705,-500.0,0.00016438,2]
[351356659,1738536638715,-500.0,0.00016438,2]
[351356661,1738536638725,-509.76511592,0.00016438,2]
[351356663,1738536638738,-500.0,0.00016438,2]
[351356665,1738536638748,-506.47461413,0.00016438,2]
[351356666,1738536638757,-500.0,0.00016438,2]
[351356667,1738536638767,-500.0,0.00016438,2]
[351356668,1738536638776,-500.0,0.00016438,2]
[351356669,1738536638786,-657.54,0.00016438,2]
[351356671,1738536638796,-500.0,0.00016438,2]
[351356672,1738536638806,-500.0,0.00016438,2]
[351356674,1738536638816,-500.0,0.00016438,2]
[351356676,1738536638825,-507.36625239,0.00016438,2]
[351356678,1738536638836,-500.0,0.00016438,2]
[351356680,1738536638846,-500.0,0.00016438,2]
[351356682,1738536638856,-500.0,0.00016438,2]
[351356684,1738536638866,-298.88358271,0.00016438,2]
[351356686,1738536638876,-500.0,0.00016438,2]
[351356687,1738536638887,-500.0,0.00016438,2]
[351356688,1738536638897,-1405.53,0.00016438,2]
[351356689,1738536638907,-500.0,0.00016438,2]
[351356690,1738536638917,-503.45325406,0.00016438,2]
[351356691,1738536638927,-500.0,0.00016438,2]
[351356692,1738536638939,-533.81827789,0.00016438,2]
[351356693,1738536638948,-903.71,0.00016438,2]
[351356694,1738536638957,-500.0,0.00016438,2]
[351356695,1738536638967,-200.0,0.00016438,2]
[351356696,1738536638976,-500.63842417,0.00016438,2]
[351356697,1738536638985,-500.0,0.00016438,2]
[351356698,1738536638994,-529.61171868,0.00016561,2]
[351356699,1738536639004,-500.0,0.00016574,2]
[351356700,1738536639014,-498.01778974,0.00016574,2]
[351356701,1738536639024,-507.05613726,0.00016575,2]
[351356702,1738536639034,-500.0,0.00016575,2]
[351356703,1738536639043,-500.0,0.00016575,2]
[351356704,1738536639053,-509.17297699,0.00016575,2]
[351356706,1738536639063,-500.0,0.00016575,2]
[351356708,1738536639072,-500.0,0.00016575,2]
[351356710,1738536639082,-500.0,0.00016575,2]
[351356711,1738536639092,-157.08218412,0.00016575,2]
[351356712,1738536639102,-500.0,0.00016575,2]
[351356713,1738536639112,-500.0,0.00016575,2]
[351356714,1738536639122,-500.0,0.00016575,2]
[351356715,1738536639133,-500.18,0.00016575,2]
[351356716,1738536639143,-500.0,0.00016575,2]
[351356717,1738536639153,-500.0,0.00016575,2]
[351356718,1738536639163,-500.0,0.00016575,2]
[351356719,1738536639172,-500.0,0.00016575,2]
[351356720,1738536639185,-500.0,0.00016575,2]
[351356721,1738536639195,-500.0,0.00016575,2]
[351356722,1738536639205,-500.0,0.00016575,2]
[351356723,1738536639215,-500.0,0.00016575,2]
[351356724,1738536639225,-500.0,0.00016575,2]
[351356725,1738536639235,-172.14367488,0.00016575,2]
[351356726,1738536639245,-500.0,0.00016575,2]
[351356727,1738536639255,-533.49,0.00016575,2]
[351356728,1738536639265,-535.58,0.00016575,2]
[351356729,1738536639276,-500.0,0.00016575,2]
[351356730,1738536639286,-500.0,0.00016575,2]
[351356731,1738536639296,-500.0,0.00016575,2]
[351356732,1738536639306,-500.0,0.00016575,2]
[351356733,1738536639316,-500.0,0.00016575,2]
[351356734,1738536639325,-500.0,0.00016575,2]
[351356735,1738536639336,-500.0,0.00016575,2]
[351356736,1738536639346,-500.0,0.00016575,2]
[351356737,1738536639356,-500.0,0.00016575,2]
[351356738,1738536639366,-346.45934755,0.00016575,2]
[351356739,1738536639385,-131.5343496,0.00016575,2]
[351356740,1738536639395,-500.0,0.00016575,2]
[351356741,1738536639405,-500.0,0.00016575,2]
[351356742,1738536639415,-500.0,0.00016575,2]
[351356743,1738536639425,-576.86,0.00016575,2]
[351356744,1738536639437,-1145.47,0.00016575,2]
[351356745,1738536639448,-500.0,0.00016575,2]
[351356746,1738536639459,-500.0,0.00016575,2]
[351356747,1738536639470,-500.0,0.00016575,2]
[351356748,1738536639480,-503.89136021,0.00016575,2]
[351356749,1738536639490,-500.0,0.00016575,2]
[351356750,1738536639500,-500.0,0.00016575,2]
[351356751,1738536639512,-500.0,0.00016575,2]
[351356752,1738536639523,-1335.28,0.00016575,2]
[351356753,1738536639533,-1945.69,0.00016575,2]
[351356755,1738536639543,-500.0,0.00016575,2]
[351356757,1738536639553,-500.0,0.00016575,2]
[351356758,1738536639563,-799.04,0.00016575,2]
[351356760,1738536639573,-500.0,0.00016575,2]
[351356762,1738536639583,-500.0,0.00016575,2]
[351356763,1738536639593,-505.68548482,0.00016575,2]
[351356764,1738536639603,-508.34,0.00016575,2]
[351356765,1738536639613,-1211.27,0.00016575,2]
[351356767,1738536639627,-5878.64080553,0.00016575,2]
[351356776,1738536639781,-500.0,0.00016438,2]
[351356778,1738536639792,-1466.02919447,0.00016575,2]
[351356780,1738536639802,-5129.37499288,0.00016575,2]
[351356781,1738536639814,-1167.88500712,0.00016575,2]
[351356782,1738536639824,-650.73,0.00016575,2]
[351356783,1738536639833,-500.0,0.00016575,2]
[351356784,1738536639844,-1715.66,0.00016575,2]
[351356785,1738536639854,-803.62,0.00016575,2]
[351356786,1738536639863,-558.19,0.00016575,2]
[351356787,1738536639872,-500.0,0.00016575,2]
[351356788,1738536639882,-1571.48,0.00016575,2]
[351356789,1738536639892,-500.0,0.00016575,2]
[351356790,1738536639902,-500.0,0.00016575,2]
[351356791,1738536639912,-500.0,0.00016575,2]
[351356792,1738536639921,-500.0,0.00016575,2]
[351356793,1738536639931,-500.0,0.00016575,2]
[351356794,1738536639944,-500.0,0.00016575,2]
[351356795,1738536639955,-500.0,0.00016575,2]
[351356796,1738536639964,-500.0,0.00016575,2]
[351356797,1738536639974,-838.23,0.00016575,2]
[351356798,1738536639983,-610.09,0.00016575,2]
[351356799,1738536639993,-506.58122246,0.00016575,2]
[351356800,1738536640002,-4068.28,0.00016575,2]
[351356801,1738536640012,-1341.99,0.00016575,2]
[351356802,1738536640021,-500.0,0.00016575,2]
[351356803,1738536640032,-500.0,0.00016575,2]
[351356804,1738536640042,-500.0,0.00016575,2]
[351356805,1738536640052,-500.0,0.00016575,2]
[351356807,1738536640062,-500.0,0.00016575,2]
[351356808,1738536640071,-3625.05,0.00016575,2]
[351356810,1738536640081,-1352.18,0.00016575,2]
[351356812,1738536640090,-463.45570875,0.00016575,2]
[351356814,1738536640100,-500.0,0.00016575,2]
[351356817,1738536640119,-500.0,0.00016575,2]
[351356819,1738536640131,-502.10858534,0.00016575,2]
[351356820,1738536640140,-657.54,0.00016575,2]
[351356821,1738536640150,-500.0,0.00016575,2]
[351356822,1738536640160,-500.0,0.00016575,2]
[351356823,1738536640170,-500.0,0.00016575,2]
[351356824,1738536640180,-190.05213036,0.00016575,2]
[351356825,1738536640192,-500.0,0.00016575,2]
[351356827,1738536640202,-1405.53,0.00016575,2]
[351356829,1738536640212,-500.0,0.00016575,2]
[351356830,1738536640222,-500.0,0.00016575,2]
[351356831,1738536640233,-903.71,0.00016575,2]
[351356832,1738536640243,-157.54760887,0.00016575,2]
[351356833,1738536640253,-500.0,0.00016575,2]
[351356834,1738536640263,-151.0,0.00016665,2]
[351356835,1738536640273,-636.51171323,0.00016711,2]
[351356836,1738536640283,-55690.06185258,0.00016712,5]
[351356837,1738536640293,-500.0,0.00016712,2]
[351356838,1738536640303,-500.0,0.00016712,2]
[351356839,1738536640313,-500.0,0.00016712,2]
[351356840,1738536640322,-500.0,0.00016712,2]
[351356841,1738536640332,-500.0,0.00016712,2]
[351356842,1738536640342,-601.85,0.00016712,2]
[351356843,1738536640351,-500.18,0.00016712,2]
[351356844,1738536640361,-500.0,0.00016712,2]
[351356845,1738536640371,-500.0,0.00016712,2]
[351356846,1738536640381,-570.28,0.00016712,2]
[351356847,1738536640390,-500.0,0.00016712,2]
[351356848,1738536640400,-500.0,0.00016712,2]
[351356849,1738536640409,-500.0,0.00016712,2]
[351356851,1738536640419,-500.0,0.00016712,2]
[351356853,1738536640428,-500.0,0.00016712,2]
[351356855,1738536640440,-500.0,0.00016712,2]
[351356857,1738536640450,-500.0,0.00016712,2]
[351356859,1738536640459,-533.49,0.00016712,2]
[351356860,1738536640468,-500.0,0.00016712,2]
[351356861,1738536640477,-500.0,0.00016712,2]
[351356862,1738536640487,-500.0,0.00016712,2]
[351356863,1738536640496,-500.0,0.00016712,2]
[351356864,1738536640506,-500.0,0.00016712,2]
[351356865,1738536640515,-500.0,0.00016712,2]
[351356866,1738536640524,-500.0,0.00016712,2]
[351356867,1738536640534,-500.0,0.00016712,2]
[351356868,1738536640544,-500.0,0.00016712,2]
[351356869,1738536640553,-1145.47,0.00016712,2]
[351356870,1738536640562,-500.0,0.00016712,2]
[351356871,1738536640571,-500.0,0.00016712,2]
[351356872,1738536640581,-500.0,0.00016712,2]
[351356873,1738536640709,-500.0,0.00016712,2]
[351356874,1738536640718,-500.0,0.00016712,2]
[351356875,1738536640728,-1335.28,0.00016712,2]
[351356877,1738536640737,-1945.69,0.00016712,2]
[351356878,1738536640746,-799.04,0.00016712,2]
[351356879,1738536640755,-500.0,0.00016712,2]
[351356880,1738536640764,-500.0,0.00016712,2]
[351356881,1738536640774,-508.34,0.00016712,2]
[351356882,1738536640783,-1211.27,0.00016712,2]
[351356883,1738536640793,-7344.67,0.00016712,2]
[351356885,1738536640802,-6297.26,0.00016712,2]
[351356887,1738536640812,-650.73,0.00016712,2]
[351356889,1738536640821,-500.0,0.00016712,2]
[351356890,1738536640831,-1715.66,0.00016712,2]
[351356891,1738536640843,-803.62,0.00016712,2]
[351356892,1738536640852,-558.19,0.00016712,2]
[351356893,1738536640862,-500.0,0.00016712,2]
[351356894,1738536640871,-1571.48,0.00016712,2]
[351356895,1738536640880,-500.0,0.00016712,2]
[351356896,1738536640890,-173.45222,0.00016712,2]
[351356897,1738536640899,-500.0,0.00016712,2]
[351356898,1738536640909,-500.0,0.00016712,2]
[351356899,1738536640923,-151.0,0.00016712,2]
[351356900,1738536640932,-500.0,0.00016712,2]
[351356901,1738536640943,-500.0,0.00016712,2]
[351356902,1738536640953,-151.0,0.00016712,2]
[351356903,1738536640963,-500.0,0.00016712,2]
[351356904,1738536640972,-838.23,0.00016712,2]
[351356905,1738536640982,-610.09,0.00016712,2]
[351356906,1738536640992,-4068.28,0.00016712,2]
[351356907,1738536641002,-1341.99,0.00016712,2]
[351356908,1738536641011,-500.0,0.00016712,2]
[351356909,1738536641021,-500.0,0.00016712,2]
[351356910,1738536641031,-500.0,0.00016712,2]
[351356912,1738536641040,-500.0,0.00016712,2]
[351356914,1738536641050,-500.0,0.00016712,2]
[351356915,1738536641059,-194.055372,0.00016712,2]
[351356916,1738536641069,-3625.05,0.00016712,2]
[351356917,1738536641078,-1352.18,0.00016712,2]
[351356918,1738536641088,-194.055372,0.00016712,2]
[351356919,1738536641097,-500.0,0.00016712,2]
[351356920,1738536641107,-500.0,0.00016712,2]
[351356921,1738536641116,-657.54,0.00016712,2]
[351356922,1738536641126,-500.0,0.00016712,2]
[351356924,1738536641135,-500.0,0.00016712,2]
[351356925,1738536641144,-151.0,0.00016712,2]
[351356927,1738536641153,-500.0,0.00016712,2]
[351356929,1738536641163,-1405.53,0.00016712,2]
[351356931,1738536641173,-500.0,0.00016712,2]
[351356933,1738536641183,-500.0,0.00016712,2]
[351356934,1738536641194,-903.71,0.00016712,2]
[351356935,1738536641203,-500.0,0.00016712,2]
[351356937,1738536641212,-529.61171868,0.00016784,2]
[351356938,1738536641222,-6030.25742047,0.00016848,5]
[351356940,1738536641232,-151.0,0.00016848,2]
[351356942,1738536641241,-151.0,0.00016848,2]
[351356944,1738536641251,-5779.17,0.00016848,2]
[351356946,1738536641260,-500.0,0.00016848,2]
[351356947,1738536641269,-500.0,0.00016849,2]
[351356948,1738536641279,-500.0,0.00016849,2]
[351356949,1738536641288,-283.96476812,0.00016849,2]
[351356950,1738536641298,-500.18,0.00016849,2]
[351356951,1738536641308,-604.59,0.00016849,2]
[351356952,1738536641317,-500.0,0.00016849,2]
[351356953,1738536641327,-500.0,0.00016849,2]
[351356954,1738536641336,-500.0,0.00016849,2]
[351356955,1738536641345,-500.0,0.00016849,2]
[351356956,1738536641355,-151.0,0.00016849,2]
[351356957,1738536641365,-500.0,0.00016849,2]
[351356958,1738536641374,-533.49,0.00016849,2]
[351356959,1738536641384,-500.0,0.00016849,2]
[351356960,1738536641393,-500.0,0.00016849,2]
[351356961,1738536641402,-500.0,0.00016849,2]
[351356962,1738536641412,-272.21,0.00016849,2]
[351356963,1738536641422,-151.0,0.00016849,2]
[351356964,1738536641431,-600.9630685,0.00016849,2]
[351356965,1738536641443,-500.0,0.00016849,2]
[351356966,1738536641452,-500.0,0.00016849,2]
[351356967,1738536641462,-500.0,0.00016849,2]
[351356968,1738536641471,-375.490446,0.00016849,2]
[351356969,1738536641481,-375.490446,0.00016849,2]
[351356970,1738536641490,-178.86781,0.00016849,2]
[351356971,1738536641500,-1145.47,0.00016849,2]
[351356972,1738536641510,-482.44062858,0.00016849,2]
[351356973,1738536641519,-500.0,0.00016849,2]
[351356974,1738536641528,-151.0,0.00016849,2]
[351356975,1738536641537,-500.0,0.00016849,2]
[351356976,1738536641547,-500.0,0.00016849,2]
[351356977,1738536641556,-151.0,0.00016849,2]
[351356978,1738536641565,-500.0,0.00016849,2]
[351356979,1738536641575,-1335.28,0.00016849,2]
[351356980,1738536641584,-151.927478,0.00016849,2]
[351356981,1738536641593,-1945.69,0.00016849,2]
[351356982,1738536641602,-697.90620811,0.00016849,2]
[351356983,1738536641681,-101.13379189,0.00016849,2]
[351356984,1738536641695,-159.86620811,0.00016849,2]
[351356985,1738536641710,-340.13379189,0.00016849,2]
[351356986,1738536641723,-0.47191842,0.00016849,2]
[351356987,1738536641738,-507.86808158,0.00016849,2]
[351356988,1738536641751,-388.71978858,0.00016849,2]
[351356989,1738536641767,-822.55021142,0.00016849,2]
[351356990,1738536641780,-2015.34978861,0.00016849,2]
[351356991,1738536641796,-282.6,0.00016849,2]
[351356992,1738536641813,-2838.15242301,0.00016849,2]
[351356993,1738536641835,-2208.56778838,0.00016849,2]
[351356994,1738536641848,-6297.26,0.00016849,2]
[351356995,1738536641860,-650.73,0.00016849,2]
[351356996,1738536641873,-500.0,0.00016849,2]
[351356997,1738536641887,-1715.66,0.00016849,2]
[351356998,1738536641899,-558.19,0.00016849,2]
[351356999,1738536641912,-803.62,0.00016849,2]
[351357000,1738536641922,-500.0,0.00016849,2]
[351357001,1738536641936,-1571.48,0.00016849,2]
[351357002,1738536641947,-500.0,0.00016849,2]
[351357003,1738536641959,-500.0,0.00016849,2]
[351357004,1738536641972,-500.0,0.00016849,2]
[351357005,1738536641985,-151.0,0.00016849,2]
[351357006,1738536641998,-500.0,0.00016849,2]
[351357007,1738536642012,-500.0,0.00016849,2]
[351357008,1738536642025,-151.0,0.00016849,2]
[351357009,1738536642039,-838.23,0.00016849,2]
[351357010,1738536642052,-610.09,0.00016849,2]
[351357011,1738536642062,-4068.28,0.00016849,2]
[351357012,1738536642072,-1341.99,0.00016849,2]
[351357013,1738536642083,-500.0,0.00016849,2]
[351357014,1738536642096,-500.0,0.00016849,2]
[351357015,1738536642108,-500.0,0.00016849,2]
[351357016,1738536642123,-194.055372,0.00016849,2]
[351357017,1738536642135,-3625.05,0.00016849,2]
[351357018,1738536642146,-1352.18,0.00016849,2]
[351357019,1738536642157,-194.055372,0.00016849,2]
[351357020,1738536642169,-500.0,0.00016849,2]
[351357021,1738536642181,-500.0,0.00016849,2]
[351357022,1738536642194,-657.54,0.00016849,2]
[351357023,1738536642205,-500.0,0.00016849,2]
[351357024,1738536642215,-500.0,0.00016849,2]
[351357025,1738536642227,-151.0,0.00016849,2]
[351357026,1738536642241,-151.0,0.00016849,2]
[351357027,1738536642253,-224.05285589,0.00016849,2]
[351357028,1738536642265,-1405.53,0.00016849,2]
[351357029,1738536642277,-500.0,0.00016849,2]
[351357030,1738536642289,-903.71,0.00016849,2]
[351357031,1738536642301,-500.0,0.00016849,2]
[351357032,1738536642312,-500.0,0.00016872,2]
[351357033,1738536642324,-500.0,0.00016872,2]
[351357034,1738536642335,-415.3025426,0.00016872,2]
[351357035,1738536642346,-420.0,0.00016877,2]
[351357036,1738536642357,-276.41,0.00016885,2]
[351357037,1738536642368,-487.68729175,0.00016896,2]
[351357038,1738536642380,-1014.01445659,0.00016898,3]
[351357039,1738536642391,-151.0,0.00016898,2]
[351357040,1738536642402,-151.0,0.00016898,2]
[351357041,1738536642413,-751.7504165,0.000169,2]
[351357042,1738536642425,-751.75041632,0.00016934,2]
[351357043,1738536642437,-151.0,0.00016935,2]
[351357044,1738536642448,-500.0,0.00016944,2]
[351357046,1738536642460,-751.75041632,0.00016969,2]
[351357048,1738536642471,-151.0,0.00016969,2]
[351357049,1738536642482,-151.0,0.00016969,2]
[351357051,1738536642493,-151.0,0.00016969,2]
[351357052,1738536642505,-195.144152,0.00016984,2]
[351357054,1738536642516,-151.0,0.00016984,2]
[351357056,1738536642528,-151.0,0.00016984,2]
[351357058,1738536642540,-214.99313,0.00016984,2]
[351357059,1738536642551,-194.055372,0.00016984,2]
[351357060,1738536642563,-194.055372,0.00016984,2]
[351357062,1738536642574,-151.0,0.00016985,2]
[351357064,1738536642585,-151.0,0.00016985,2]
[351357067,1738536642598,-151.0,0.00016985,2]
[351357068,1738536642610,-151.0,0.00016985,2]
[351357069,1738536642625,-151.0,0.00016985,2]
[351357071,1738536642637,-151.0,0.00016985,2]